[Event "*** Titled Tuesday Blitz"]
[Site "Chess.com"]
[Date "2019.01.01"]
[Round "5"]
[White "joppie2"]
[Black "vpsetter"]
[Result "1-0"]
[WhiteElo "2747"]
[BlackElo "2574"]
[TimeControl "180+2"]
[EndTime "14:12:01 PST"]
[Termination "joppie2 won by resignation"]

1. e4 {[%clk 0:02:59.2]} 1... e5 {[%clk 0:02:59.6]} 2. Nf3 {[%clk 0:02:58]} 2...
Nc6 {[%clk 0:03:00.6]} 3. Bc4 {[%clk 0:02:59.6]} 3... Bc5 {[%clk 0:03:00.7]} 4.
c3 {[%clk 0:03:01.1]} 4... Nf6 {[%clk 0:02:58.6]} 5. d3 {[%clk 0:03:02.5]} 5...
a6 {[%clk 0:02:56.2]} 6. O-O {[%clk 0:03:03.4]} 6... d6 {[%clk 0:02:57.1]} 7. a4
{[%clk 0:03:04]} 7... Ba7 {[%clk 0:02:57.3]} 8. Nbd2 {[%clk 0:03:03.5]} 8... O-O
{[%clk 0:02:55.2]} 9. h3 {[%clk 0:03:00.9]} 9... h6 {[%clk 0:02:52.7]} 10. Re1
{[%clk 0:03:01.8]} 10... Ne7 {[%clk 0:02:53.6]} 11. d4 {[%clk 0:03:00]} 11...
exd4 {[%clk 0:02:51.5]} 12. cxd4 {[%clk 0:02:57.9]} 12... d5 {[%clk 0:02:52.7]}
13. exd5 {[%clk 0:02:56.9]} 13... Nexd5 {[%clk 0:02:53]} 14. Qb3 {[%clk
0:02:55.6]} 14... c6 {[%clk 0:02:48.1]} 15. Nf1 {[%clk 0:02:51]} 15... b5 {[%clk
0:02:47.5]} 16. axb5 {[%clk 0:02:50.4]} 16... axb5 {[%clk 0:02:47.6]} 17. Bd3
{[%clk 0:02:46.6]} 17... Be6 {[%clk 0:02:48.1]} 18. Qd1 {[%clk 0:02:33.8]} 18...
Qc7 {[%clk 0:02:31.8]} 19. Ng3 {[%clk 0:02:29.8]} 19... Bb6 {[%clk 0:02:10.6]}
20. Bd2 {[%clk 0:02:27.3]} 20... Rxa1 {[%clk 0:02:07.5]} 21. Qxa1 {[%clk
0:02:29.2]} 21... Nf4 {[%clk 0:02:03]} 22. Bf1 {[%clk 0:02:11.6]} 22... Bd5
{[%clk 0:01:58.4]} 23. Bb4 {[%clk 0:01:51.6]} 23... Rc8 {[%clk 0:01:11.9]} 24.
Nf5 {[%clk 0:01:21.7]} 24... Nxh3+ {[%clk 0:00:37.3]} 25. gxh3 {[%clk
0:01:18.7]} 25... Bxf3 {[%clk 0:00:37.9]} 26. Bd6 {[%clk 0:01:13.9]} 26... Qd7
{[%clk 0:00:34.2]} 27. Ne7+ {[%clk 0:01:14.8]} 27... Kh8 {[%clk 0:00:31.8]} 28.
Nxc8 {[%clk 0:01:14.1]} 28... Qxc8 {[%clk 0:00:32.9]} 29. Qa3 {[%clk 0:01:10.1]}
29... Qf5 {[%clk 0:00:31.1]} 30. Qe3 {[%clk 0:01:00.3]} 30... Nd5 {[%clk
0:00:17.9]} 31. Qe5 {[%clk 0:00:56.9]} 31... Qg6+ {[%clk 0:00:16.7]} 32. Qg3
{[%clk 0:00:58.4]} 32... Qxg3+ {[%clk 0:00:13.2]} 33. Bxg3 {[%clk 0:01:00.3]}
33... Bxd4 {[%clk 0:00:14.2]} 34. Bd3 {[%clk 0:00:43.5]} 34... g5 {[%clk
0:00:10.7]} 35. Be5+ {[%clk 0:00:27.3]} 35... Bxe5 {[%clk 0:00:11.4]} 36. Rxe5
{[%clk 0:00:29.2]} 36... Kg7 {[%clk 0:00:12.1]} 37. Be4 {[%clk 0:00:24]} 37...
Bxe4 {[%clk 0:00:07.8]} 38. Rxe4 {[%clk 0:00:25.9]} 38... Kf6 {[%clk 0:00:08.6]}
39. Re8 {[%clk 0:00:20.5]} 39... Nf4 {[%clk 0:00:06.5]} 40. Rc8 {[%clk
0:00:20.2]} 40... Nxh3+ {[%clk 0:00:07]} 41. Kf1 {[%clk 0:00:21.8]} 41... Nf4
{[%clk 0:00:07.5]} 42. Rxc6+ {[%clk 0:00:23.2]} 42... Kg7 {[%clk 0:00:08.2]} 43.
Rb6 {[%clk 0:00:23.1]} 43... h5 {[%clk 0:00:08.2]} 44. Rxb5 {[%clk 0:00:24.5]}
44... Kg6 {[%clk 0:00:09.1]} 45. Rb8 {[%clk 0:00:25.7]} 45... h4 {[%clk
0:00:09.6]} 46. f3 {[%clk 0:00:23]} 46... f5 {[%clk 0:00:09.1]} 47. b4 {[%clk
0:00:23.3]} 47... g4 {[%clk 0:00:09.7]} 48. Rg8+ {[%clk 0:00:24.1]} 48... Kh5
{[%clk 0:00:10.3]} 49. b5 {[%clk 0:00:24.7]} 49... g3 {[%clk 0:00:09.5]} 50. b6
{[%clk 0:00:24.8]} 50... h3 {[%clk 0:00:06.7]} 51. Rh8+ {[%clk 0:00:13]} 51...
Kg5 {[%clk 0:00:06.9]} 52. Rxh3 {[%clk 0:00:05.6]} 52... g2+ {[%clk 0:00:05.4]}
53. Kf2 {[%clk 0:00:05.2]} 53... Nxh3+ {[%clk 0:00:05.5]} 54. Kxg2 {[%clk
0:00:06.8]} 54... Nf4+ {[%clk 0:00:06.3]} 55. Kh2 {[%clk 0:00:08.3]} 1-0

[Event "*** Titled Tuesday Blitz"]
[Site "Chess.com"]
[Date "2019.01.01"]
[Round "5"]
[White "Jbd735"]
[Black "Babas"]
[Result "0-1"]
[WhiteElo "2467"]
[BlackElo "2287"]
[TimeControl "180+2"]
[EndTime "14:12:03 PST"]
[Termination "Babas won by resignation"]

1. e4 {[%clk 0:03:01.9]} 1... e5 {[%clk 0:02:58.4]} 2. Nf3 {[%clk 0:03:02.4]}
2... Nc6 {[%clk 0:02:59.5]} 3. Bb5 {[%clk 0:03:03.4]} 3... a6 {[%clk 0:03:00.5]}
4. Ba4 {[%clk 0:03:04.2]} 4... Nf6 {[%clk 0:03:00.7]} 5. O-O {[%clk 0:03:05.2]}
5... b5 {[%clk 0:03:01.8]} 6. Bb3 {[%clk 0:03:05.8]} 6... Be7 {[%clk 0:03:03.3]}
7. Re1 {[%clk 0:03:04.2]} 7... O-O {[%clk 0:03:03.8]} 8. h3 {[%clk 0:03:03.4]}
8... d6 {[%clk 0:03:04.1]} 9. c3 {[%clk 0:03:03.3]} 9... h6 {[%clk 0:03:04.6]}
10. d4 {[%clk 0:03:01.8]} 10... Re8 {[%clk 0:03:04.7]} 11. Nbd2 {[%clk
0:02:57.7]} 11... Bf8 {[%clk 0:03:02.2]} 12. Nf1 {[%clk 0:02:42.6]} 12... g6
{[%clk 0:03:02.2]} 13. Ng3 {[%clk 0:02:30.2]} 13... Bg7 {[%clk 0:03:03]} 14. a4
{[%clk 0:02:23]} 14... Bb7 {[%clk 0:03:00.4]} 15. d5 {[%clk 0:02:13.9]} 15...
Nb8 {[%clk 0:02:54.7]} 16. axb5 {[%clk 0:01:59.7]} 16... axb5 {[%clk 0:02:56.6]}
17. Rxa8 {[%clk 0:02:00.8]} 17... Bxa8 {[%clk 0:02:58.5]} 18. Qd3 {[%clk
0:01:59.8]} 18... c6 {[%clk 0:02:28.1]} 19. dxc6 {[%clk 0:01:52.7]} 19... Bxc6
{[%clk 0:02:30]} 20. Rd1 {[%clk 0:01:47]} 20... Bf8 {[%clk 0:02:30.8]} 21. Nh4
{[%clk 0:01:32.3]} 21... Nxe4 {[%clk 0:01:50.2]} 22. Nxg6 {[%clk 0:01:07.9]}
22... Nc5 {[%clk 0:01:43.5]} 23. Bxf7+ {[%clk 0:01:04.5]} 23... Kxf7 {[%clk
0:01:44.3]} 24. Qf5+ {[%clk 0:01:04.8]} 24... Qf6 {[%clk 0:01:05.5]} 25. Qxf6+
{[%clk 0:01:00.7]} 25... Kxf6 {[%clk 0:01:05.7]} 26. Nxf8 {[%clk 0:01:02.6]}
26... Rxf8 {[%clk 0:01:04.3]} 27. Rxd6+ {[%clk 0:01:02.8]} 27... Ke7 {[%clk
0:01:02.5]} 28. Rxh6 {[%clk 0:01:02.5]} 28... Ne6 {[%clk 0:00:51.5]} 29. Be3
{[%clk 0:01:01.4]} 29... Nd7 {[%clk 0:00:48.8]} 30. b4 {[%clk 0:00:49.8]} 30...
Bd5 {[%clk 0:00:45]} 31. Rh5 {[%clk 0:00:45]} 31... Nf4 {[%clk 0:00:38.6]} 32.
Bxf4 {[%clk 0:00:41.8]} 32... Rxf4 {[%clk 0:00:38.8]} 33. Nf5+ {[%clk
0:00:41.7]} 33... Kf6 {[%clk 0:00:33.3]} 34. Ne3 {[%clk 0:00:42.2]} 34... Bc4
{[%clk 0:00:17.9]} 35. Rh6+ {[%clk 0:00:38.8]} 35... Ke7 {[%clk 0:00:15.1]} 36.
g4 {[%clk 0:00:38.4]} 36... Nf6 {[%clk 0:00:13.2]} 37. Rh8 {[%clk 0:00:35.6]}
37... Ne4 {[%clk 0:00:12.4]} 38. Rh5 {[%clk 0:00:22.4]} 38... Kd6 {[%clk
0:00:08.6]} 39. Rf5 {[%clk 0:00:20.2]} 39... Rxf5 {[%clk 0:00:07.5]} 40. Nxf5+
{[%clk 0:00:20.5]} 40... Ke6 {[%clk 0:00:08.9]} 41. h4 {[%clk 0:00:21]} 41...
Nxc3 {[%clk 0:00:09.7]} 42. h5 {[%clk 0:00:21.7]} 42... Kf6 {[%clk 0:00:09.4]}
43. h6 {[%clk 0:00:21.4]} 43... Kg6 {[%clk 0:00:10.1]} 44. g5 {[%clk 0:00:21.7]}
44... Nd5 {[%clk 0:00:10.1]} 45. Nh4+ {[%clk 0:00:20]} 45... Kh7 {[%clk
0:00:10]} 46. Nf3 {[%clk 0:00:20.1]} 46... e4 {[%clk 0:00:05]} 47. Ne5 {[%clk
0:00:19.5]} 47... Bd3 {[%clk 0:00:05.8]} 48. Kh2 {[%clk 0:00:19.5]} 48... Nxb4
{[%clk 0:00:06.8]} 49. Kg3 {[%clk 0:00:20.7]} 49... Nd5 {[%clk 0:00:08.2]} 50.
Kg4 {[%clk 0:00:20.4]} 50... Ne7 {[%clk 0:00:09.7]} 51. Kh5 {[%clk 0:00:15]}
51... b4 {[%clk 0:00:10.6]} 52. g6+ {[%clk 0:00:15.5]} 52... Nxg6 {[%clk
0:00:11.7]} 53. Nxg6 {[%clk 0:00:17.3]} 53... b3 {[%clk 0:00:10.6]} 54. Nf8+
{[%clk 0:00:18.2]} 54... Kg8 {[%clk 0:00:11.6]} 55. h7+ {[%clk 0:00:07.1]} 55...
Kg7 {[%clk 0:00:12]} 56. Ne6+ {[%clk 0:00:03.8]} 56... Kxh7 {[%clk 0:00:12.6]}
57. Ng5+ {[%clk 0:00:04.5]} 57... Kg8 {[%clk 0:00:12]} 0-1

[Event "*** Titled Tuesday Blitz"]
[Site "Chess.com"]
[Date "2019.01.01"]
[Round "5"]
[White "IamSchrodingersCat"]
[Black "mouseWLZ"]
[Result "0-1"]
[WhiteElo "2474"]
[BlackElo "2367"]
[TimeControl "180+2"]
[EndTime "14:12:07 PST"]
[Termination "mouseWLZ won on time"]

1. e4 {[%clk 0:03:01.9]} 1... e6 {[%clk 0:02:59.8]} 2. d4 {[%clk 0:03:02.3]}
2... d5 {[%clk 0:03:00.7]} 3. Nc3 {[%clk 0:03:03.4]} 3... Nf6 {[%clk 0:03:01.9]}
4. Bg5 {[%clk 0:03:03.3]} 4... Bb4 {[%clk 0:02:59.5]} 5. e5 {[%clk 0:03:04.3]}
5... h6 {[%clk 0:03:01]} 6. Bd2 {[%clk 0:03:05.5]} 6... Bxc3 {[%clk 0:03:01.6]}
7. bxc3 {[%clk 0:03:07.4]} 7... Ne4 {[%clk 0:03:03]} 8. Qg4 {[%clk 0:03:08.8]}
8... Kf8 {[%clk 0:03:04.4]} 9. Bd3 {[%clk 0:03:09.9]} 9... Nxd2 {[%clk
0:03:05.7]} 10. Kxd2 {[%clk 0:03:11.8]} 10... c5 {[%clk 0:03:07.2]} 11. h4
{[%clk 0:03:12.5]} 11... Nc6 {[%clk 0:03:07.7]} 12. Rh3 {[%clk 0:03:09.6]} 12...
c4 {[%clk 0:02:59.4]} 13. Bf1 {[%clk 0:03:01.4]} 13... b5 {[%clk 0:02:58.6]} 14.
Rg3 {[%clk 0:02:53.6]} 14... Rg8 {[%clk 0:02:58.5]} 15. a3 {[%clk 0:02:53.5]}
15... a5 {[%clk 0:02:58.3]} 16. Nh3 {[%clk 0:02:51.5]} 16... Rb8 {[%clk
0:02:55.2]} 17. Nf4 {[%clk 0:02:48.4]} 17... b4 {[%clk 0:02:40.4]} 18. axb4
{[%clk 0:02:50.3]} 18... axb4 {[%clk 0:02:41.3]} 19. cxb4 {[%clk 0:02:16.6]}
19... Nxb4 {[%clk 0:02:22.2]} 20. Ra7 {[%clk 0:02:01.7]} 20... Bd7 {[%clk
0:01:54.5]} 21. Nh5 {[%clk 0:01:49.7]} 21... Nc6 {[%clk 0:01:48.7]} 22. Rxd7
{[%clk 0:01:01.7]} 22... Qxd7 {[%clk 0:01:41.9]} 23. Nf6 {[%clk 0:01:00]} 23...
Qa7 {[%clk 0:01:27.7]} 24. Nxg8 {[%clk 0:00:46.1]} 24... Qxd4+ {[%clk
0:01:24.3]} 25. Qxd4 {[%clk 0:00:47]} 25... Nxd4 {[%clk 0:01:26]} 26. Nxh6
{[%clk 0:00:45.5]} 26... gxh6 {[%clk 0:01:27]} 27. Kc3 {[%clk 0:00:31.3]} 27...
Nf5 {[%clk 0:00:58.9]} 28. Rg4 {[%clk 0:00:31.9]} 28... Rb1 {[%clk 0:00:51]} 29.
Be2 {[%clk 0:00:32]} 29... Re1 {[%clk 0:00:49.2]} 30. Kd2 {[%clk 0:00:30.6]}
30... Rh1 {[%clk 0:00:49.7]} 31. g3 {[%clk 0:00:28.9]} 31... Ra1 {[%clk
0:00:42.4]} 32. Rf4 {[%clk 0:00:27.8]} 32... Ke7 {[%clk 0:00:30.8]} 33. Bh5
{[%clk 0:00:23.2]} 33... Rh1 {[%clk 0:00:20]} 34. Bg4 {[%clk 0:00:20.8]} 34...
Ng7 {[%clk 0:00:19.3]} 35. Rf6 {[%clk 0:00:22.3]} 35... h5 {[%clk 0:00:19.2]}
36. Be2 {[%clk 0:00:18.8]} 36... Ra1 {[%clk 0:00:16.5]} 37. Rh6 {[%clk
0:00:17.2]} 37... Ra8 {[%clk 0:00:10.9]} 38. Bxh5 {[%clk 0:00:16.9]} 38... d4
{[%clk 0:00:09.9]} 39. Rh7 {[%clk 0:00:15.9]} 39... Rg8 {[%clk 0:00:10]} 40. Bg4
{[%clk 0:00:14.7]} 40... Ne8 {[%clk 0:00:08.9]} 41. Bh5 {[%clk 0:00:15.2]} 41...
Ng7 {[%clk 0:00:10.1]} 42. Bg4 {[%clk 0:00:16.3]} 42... Ne8 {[%clk 0:00:11.2]}
43. Bf3 {[%clk 0:00:17.8]} 43... Nc7 {[%clk 0:00:10.1]} 44. h5 {[%clk
0:00:15.9]} 44... Na6 {[%clk 0:00:10.1]} 45. h6 {[%clk 0:00:15.7]} 45... Nc5
{[%clk 0:00:11.4]} 46. Rg7 {[%clk 0:00:15.1]} 46... c3+ {[%clk 0:00:12.4]} 47.
Kd1 {[%clk 0:00:12.3]} 47... Rh8 {[%clk 0:00:13.8]} 48. Bh5 {[%clk 0:00:05.1]}
48... Rxh6 {[%clk 0:00:13.3]} 49. Rxf7+ {[%clk 0:00:06.1]} 49... Kd8 {[%clk
0:00:14.2]} 50. Bf3 {[%clk 0:00:06.2]} 50... Nd7 {[%clk 0:00:14.7]} 51. Rf4
{[%clk 0:00:05]} 51... Nxe5 {[%clk 0:00:12.2]} 52. Rxd4+ {[%clk 0:00:05.9]}
52... Ke7 {[%clk 0:00:13.9]} 53. Be4 {[%clk 0:00:07]} 53... Rh2 {[%clk
0:00:14.1]} 54. Ke1 {[%clk 0:00:05.3]} 54... Ng4 {[%clk 0:00:14.2]} 55. f4
{[%clk 0:00:05.1]} 55... Ne3 {[%clk 0:00:13.3]} 56. Rb4 {[%clk 0:00:04]} 56...
Kf6 {[%clk 0:00:10.3]} 57. Rb3 {[%clk 0:00:03.2]} 57... Nxc2+ {[%clk 0:00:11.3]}
58. Bxc2 {[%clk 0:00:02.4]} 58... Rxc2 {[%clk 0:00:13.2]} 59. Rb4 {[%clk
0:00:03.9]} 59... Rg2 {[%clk 0:00:13.6]} 0-1

[Event "*** Titled Tuesday Blitz"]
[Site "Chess.com"]
[Date "2019.01.01"]
[Round "5"]
[White "pulvettd"]
[Black "VeraNebolsina"]
[Result "1/2-1/2"]
[WhiteElo "2493"]
[BlackElo "2363"]
[TimeControl "180+2"]
[EndTime "14:12:11 PST"]
[Termination "Game drawn by agreement"]

1. d4 {[%clk 0:02:58.6]} 1... Nf6 {[%clk 0:03:00.5]} 2. c4 {[%clk 0:02:57.5]}
2... g6 {[%clk 0:03:01.2]} 3. Nc3 {[%clk 0:02:56.6]} 3... d5 {[%clk 0:03:02.1]}
4. Nf3 {[%clk 0:02:57.1]} 4... Bg7 {[%clk 0:03:02.5]} 5. h4 {[%clk 0:02:59]}
5... c6 {[%clk 0:03:00.8]} 6. cxd5 {[%clk 0:02:59.3]} 6... cxd5 {[%clk
0:03:01.3]} 7. Bf4 {[%clk 0:02:58.3]} 7... h5 {[%clk 0:02:49.8]} 8. e3 {[%clk
0:02:54.1]} 8... O-O {[%clk 0:02:45.5]} 9. Ne5 {[%clk 0:02:55.4]} 9... Nc6
{[%clk 0:02:42.2]} 10. Be2 {[%clk 0:02:54.7]} 10... Nxe5 {[%clk 0:02:27.7]} 11.
Bxe5 {[%clk 0:02:56.6]} 11... Ng4 {[%clk 0:02:28.7]} 12. Bxg7 {[%clk 0:02:51.1]}
12... Kxg7 {[%clk 0:02:29.5]} 13. Qb3 {[%clk 0:02:50.8]} 13... Nf6 {[%clk
0:02:22.9]} 14. Bf3 {[%clk 0:02:48.9]} 14... Be6 {[%clk 0:02:19.6]} 15. O-O
{[%clk 0:02:45.3]} 15... Rb8 {[%clk 0:02:08]} 16. Rac1 {[%clk 0:02:40]} 16... a6
{[%clk 0:02:06.7]} 17. Ne2 {[%clk 0:02:38.9]} 17... Ne4 {[%clk 0:01:59]} 18. Rc2
{[%clk 0:02:28.6]} 18... Qd7 {[%clk 0:01:35.5]} 19. Nf4 {[%clk 0:02:26.5]} 19...
Rfd8 {[%clk 0:01:33.4]} 20. Bxe4 {[%clk 0:02:21.8]} 20... dxe4 {[%clk
0:01:32.8]} 21. Nxe6+ {[%clk 0:02:13.2]} 21... Qxe6 {[%clk 0:01:32.7]} 22. Qxe6
{[%clk 0:02:12.9]} 22... fxe6 {[%clk 0:01:33.8]} 23. Rc5 {[%clk 0:02:07.2]}
23... Rd5 {[%clk 0:01:33]} 24. Rfc1 {[%clk 0:02:06.6]} 24... Kf6 {[%clk
0:01:31]} 25. Kh2 {[%clk 0:01:59.2]} 25... Rg8 {[%clk 0:01:23.7]} 26. b3 {[%clk
0:01:50.3]} 26... g5 {[%clk 0:01:24.1]} 27. hxg5+ {[%clk 0:01:47.9]} 27... Rgxg5
{[%clk 0:01:24.7]} 28. Rxd5 {[%clk 0:01:42.6]} 28... exd5 {[%clk 0:01:24.1]} 29.
Rc7 {[%clk 0:01:42.3]} 29... Rg6 {[%clk 0:01:16.5]} 30. Rxb7 {[%clk 0:01:41.5]}
30... Kf7 {[%clk 0:01:17.6]} 31. Rd7 {[%clk 0:01:38.4]} 31... Ke6 {[%clk
0:01:16.6]} 32. Rb7 {[%clk 0:01:33.1]} 32... Kf7 {[%clk 0:01:16.1]} 33. a4
{[%clk 0:01:33.2]} 33... Rc6 {[%clk 0:01:16]} 34. b4 {[%clk 0:01:32.9]} 34...
Rc2 {[%clk 0:01:16.1]} 35. b5 {[%clk 0:01:28.1]} 35... axb5 {[%clk 0:01:15.7]}
36. Rxb5 {[%clk 0:01:30]} 36... e6 {[%clk 0:01:12.9]} 37. Rb3 {[%clk 0:01:20.4]}
37... Ra2 {[%clk 0:01:12.2]} 38. Rb7+ {[%clk 0:01:17.6]} 38... Kf6 {[%clk
0:01:12.2]} 39. Kg3 {[%clk 0:01:09.5]} 39... Rxa4 {[%clk 0:01:10.2]} 40. f3
{[%clk 0:01:03.5]} 40... exf3 {[%clk 0:01:09.3]} 41. gxf3 {[%clk 0:01:05.4]}
41... Ra3 {[%clk 0:01:09.8]} 42. Kf4 {[%clk 0:00:54.3]} 42... Ra4 {[%clk
0:01:09.5]} 43. Rb6 {[%clk 0:00:52.8]} 43... Rc4 {[%clk 0:01:08.6]} 44. Ra6
{[%clk 0:00:48.5]} 44... Rb4 {[%clk 0:01:08.8]} 45. Kg3 {[%clk 0:00:46.5]} 45...
Rb3 {[%clk 0:01:09.2]} 46. Kf4 {[%clk 0:00:46.1]} 46... Rb4 {[%clk 0:01:10.1]}
47. Rc6 {[%clk 0:00:45.5]} 47... Ra4 {[%clk 0:01:10.7]} 48. Kg3 {[%clk
0:00:42.3]} 48... Ra3 {[%clk 0:01:11.1]} 49. Kf2 {[%clk 0:00:37.2]} 49... h4
{[%clk 0:01:11.5]} 50. e4 {[%clk 0:00:31.4]} 50... dxe4 {[%clk 0:01:05.8]} 51.
fxe4 {[%clk 0:00:33.3]} 51... Ra4 {[%clk 0:01:03]} 52. Ke3 {[%clk 0:00:30.2]}
52... h3 {[%clk 0:00:56.1]} 53. Rc2 {[%clk 0:00:19.7]} 53... Kg5 {[%clk
0:00:52.9]} 54. Rh2 {[%clk 0:00:19]} 54... Ra3+ {[%clk 0:00:36.9]} 55. Kf2
{[%clk 0:00:16.4]} 55... Kf4 {[%clk 0:00:37.6]} 56. d5 {[%clk 0:00:15.7]} 56...
e5 {[%clk 0:00:35.9]} 57. d6 {[%clk 0:00:16.5]} 57... Rd3 {[%clk 0:00:34.2]} 58.
d7 {[%clk 0:00:15.4]} 58... Rd2+ {[%clk 0:00:32.7]} 59. Kg1 {[%clk 0:00:15.4]}
59... Rxd7 {[%clk 0:00:31.8]} 60. Rxh3 {[%clk 0:00:16.5]} 60... Kxe4 {[%clk
0:00:32.4]} 61. Kf2 {[%clk 0:00:15.5]} 61... Rd2+ {[%clk 0:00:32.5]} 62. Ke1
{[%clk 0:00:16.5]} 62... Ra2 {[%clk 0:00:32.7]} 63. Rg3 {[%clk 0:00:17.8]} 63...
Kf4 {[%clk 0:00:30.4]} 64. Rc3 {[%clk 0:00:18.7]} 64... e4 {[%clk 0:00:31]} 65.
Rb3 {[%clk 0:00:19.8]} 65... Ra1+ {[%clk 0:00:29.8]} 66. Ke2 {[%clk 0:00:20.5]}
66... Ra2+ {[%clk 0:00:30.6]} 1/2-1/2

[Event "*** Titled Tuesday Blitz"]
[Site "Chess.com"]
[Date "2019.01.01"]
[Round "5"]
[White "2165149677570"]
[Black "WinnerOleg"]
[Result "1-0"]
[WhiteElo "2357"]
[BlackElo "2377"]
[TimeControl "180+2"]
[EndTime "14:12:11 PST"]
[Termination "2165149677570 won on time"]

1. d4 {[%clk 0:03:01.9]} 1... Nf6 {[%clk 0:02:59.5]} 2. c4 {[%clk 0:03:02.2]}
2... e6 {[%clk 0:03:00.7]} 3. Nf3 {[%clk 0:03:02.5]} 3... Bb4+ {[%clk
0:03:01.3]} 4. Bd2 {[%clk 0:03:01.5]} 4... Bxd2+ {[%clk 0:03:01.2]} 5. Qxd2
{[%clk 0:03:03.4]} 5... b6 {[%clk 0:03:02.7]} 6. g3 {[%clk 0:03:04.7]} 6... Bb7
{[%clk 0:03:03.1]} 7. Bg2 {[%clk 0:03:06.3]} 7... O-O {[%clk 0:03:04.6]} 8. O-O
{[%clk 0:03:07.9]} 8... d6 {[%clk 0:03:04.6]} 9. Re1 {[%clk 0:03:09.3]} 9... Ne4
{[%clk 0:03:05.5]} 10. Qc2 {[%clk 0:03:10.5]} 10... Nd7 {[%clk 0:03:02.8]} 11.
Nfd2 {[%clk 0:03:12]} 11... Nxd2 {[%clk 0:02:43.5]} 12. Bxb7 {[%clk 0:03:11.4]}
12... Rb8 {[%clk 0:02:44.4]} 13. Bg2 {[%clk 0:03:04]} 13... Nxb1 {[%clk
0:02:45.3]} 14. Raxb1 {[%clk 0:03:05.6]} 14... e5 {[%clk 0:02:45.8]} 15. e3
{[%clk 0:03:01.8]} 15... c5 {[%clk 0:02:35.2]} 16. dxe5 {[%clk 0:03:00.2]} 16...
dxe5 {[%clk 0:02:33.4]} 17. Rbd1 {[%clk 0:03:01.7]} 17... Qe7 {[%clk 0:02:29.5]}
18. Qa4 {[%clk 0:02:58.4]} 18... Nf6 {[%clk 0:02:27.1]} 19. Bd5 {[%clk
0:02:53.5]} 19... Rfd8 {[%clk 0:02:19.8]} 20. e4 {[%clk 0:02:53.9]} 20... h6
{[%clk 0:02:11.4]} 21. Re3 {[%clk 0:02:51.4]} 21... Nd7 {[%clk 0:02:12.3]} 22.
Ra3 {[%clk 0:02:52.3]} 22... a5 {[%clk 0:02:11.6]} 23. Rb3 {[%clk 0:02:45.4]}
23... Nf8 {[%clk 0:02:11]} 24. Rdd3 {[%clk 0:02:41.6]} 24... Ne6 {[%clk
0:02:05.3]} 25. Bxe6 {[%clk 0:02:41.1]} 25... Qxe6 {[%clk 0:02:06.8]} 26. Rd5
{[%clk 0:02:38.1]} 26... f5 {[%clk 0:01:19.5]} 27. exf5 {[%clk 0:02:36.3]} 27...
Qxf5 {[%clk 0:01:16.5]} 28. Re3 {[%clk 0:02:31.9]} 28... Qb1+ {[%clk 0:01:05.2]}
29. Kg2 {[%clk 0:02:28.7]} 29... Qxb2 {[%clk 0:00:40.3]} 30. Rdxe5 {[%clk
0:02:18.6]} 30... Rf8 {[%clk 0:00:41.2]} 31. Re2 {[%clk 0:01:54.3]} 31... Qd4
{[%clk 0:00:42]} 32. f4 {[%clk 0:01:42]} 32... b5 {[%clk 0:00:35.8]} 33. Qxa5
{[%clk 0:01:22]} 33... Qxc4 {[%clk 0:00:37.1]} 34. Re7 {[%clk 0:01:22.2]} 34...
Qd5+ {[%clk 0:00:25.7]} 35. Kg1 {[%clk 0:01:18.7]} 35... Rf7 {[%clk 0:00:11.6]}
36. Qc7 {[%clk 0:01:10.6]} 36... Rbf8 {[%clk 0:00:09.6]} 37. Rxf7 {[%clk
0:01:05.3]} 37... Rxf7 {[%clk 0:00:11.5]} 38. Qb8+ {[%clk 0:01:05.5]} 38... Kh7
{[%clk 0:00:13]} 39. Qxb5 {[%clk 0:01:05.5]} 39... Qd1+ {[%clk 0:00:14.2]} 40.
Kg2 {[%clk 0:01:07]} 40... Qd5+ {[%clk 0:00:14.8]} 41. Kf2 {[%clk 0:01:06.8]}
41... Qd4+ {[%clk 0:00:15]} 42. Kf1 {[%clk 0:01:06]} 42... Qa1+ {[%clk
0:00:13.7]} 43. Kg2 {[%clk 0:00:59.5]} 43... Qd4 {[%clk 0:00:13.7]} 44. Qb1+
{[%clk 0:01:00.2]} 44... g6 {[%clk 0:00:13]} 45. Qe4 {[%clk 0:00:59.8]} 45...
Rd7 {[%clk 0:00:04.9]} 46. Qxd4 {[%clk 0:00:58.4]} 46... cxd4 {[%clk 0:00:06.8]}
47. Kf3 {[%clk 0:00:59]} 47... d3 {[%clk 0:00:06.8]} 48. Rd2 {[%clk 0:01:00.2]}
48... Ra7 {[%clk 0:00:07]} 49. Ke3 {[%clk 0:01:01.4]} 49... Ra3 {[%clk
0:00:08.5]} 50. Kd4 {[%clk 0:01:01.6]} 50... h5 {[%clk 0:00:09.2]} 51. Kc4
{[%clk 0:01:02.7]} 51... Kh6 {[%clk 0:00:08.3]} 52. Kb4 {[%clk 0:01:04.1]} 52...
Ra8 {[%clk 0:00:09.3]} 53. a4 {[%clk 0:01:05.4]} 53... g5 {[%clk 0:00:08.7]} 54.
fxg5+ {[%clk 0:01:05.4]} 54... Kxg5 {[%clk 0:00:10.6]} 55. Rxd3 {[%clk
0:01:06.8]} 55... Kg4 {[%clk 0:00:12.1]} 56. Rd4+ {[%clk 0:01:04.1]} 56... Kf3
{[%clk 0:00:11.2]} 57. a5 {[%clk 0:01:03.3]} 57... Rg8 {[%clk 0:00:09.3]} 58. a6
{[%clk 0:01:02.9]} 58... Rg6 {[%clk 0:00:09.6]} 59. Kb5 {[%clk 0:01:03.8]} 59...
Kg2 {[%clk 0:00:10.5]} 60. a7 {[%clk 0:01:01.8]} 60... Rg8 {[%clk 0:00:08.9]}
61. Rd5 {[%clk 0:00:59.9]} 61... Kxh2 {[%clk 0:00:08.4]} 62. Rxh5+ {[%clk
0:01:01.2]} 62... Kxg3 {[%clk 0:00:09.8]} 63. Kb6 {[%clk 0:01:00.5]} 63... Kf4
{[%clk 0:00:10.8]} 64. Kb7 {[%clk 0:00:59.4]} 64... Rg7+ {[%clk 0:00:11.9]} 65.
Kb6 {[%clk 0:01:00.2]} 65... Rg6+ {[%clk 0:00:13.2]} 66. Kb5 {[%clk 0:00:59.9]}
66... Rg8 {[%clk 0:00:14.1]} 67. Rc5 {[%clk 0:01:00.9]} 67... Ke4 {[%clk
0:00:15]} 68. Rc7 {[%clk 0:01:02.2]} 68... Kd5 {[%clk 0:00:15.8]} 69. Rb7 {[%clk
0:01:03.8]} 69... Ra8 {[%clk 0:00:08.8]} 70. Kb6 {[%clk 0:01:04.4]} 70... Kd6
{[%clk 0:00:10.1]} 71. Rb8 {[%clk 0:01:04.8]} 1-0